lending/lending_fUSD_20250210
["ID","MTS","AMOUNT","RATE_DAILY","PERIOD"]
[352636360,1739212238856,-150.0,0.00010513,2]
[352636362,1739212238866,-1000.0,0.00010536,2]
[352636364,1739212238876,-150.0,0.00010557,2]
[352636366,1739212238886,-508.04,0.00010565,2]
[352636368,1739212238895,-150.0,0.00010615,2]
[352636370,1739212238906,-150.0,0.00010662,2]
[352636372,1739212238916,-398.33,0.00010712,2]
[352636374,1739212238932,-150.0,0.00010716,2]
[352636376,1739212238942,-150.0,0.00010762,2]
[352636378,1739212238951,-492.38,0.00010789,2]
[352636380,1739212238961,-150.0,0.00010815,2]
[352636382,1739212238974,-150.0,0.00010842,2]
[352636384,1739212238985,-500.0,0.00010849,2]
[352636386,1739212238995,-150.0,0.00010857,2]
[352636388,1739212239004,-150.0,0.00010859,2]
[352636390,1739212239015,-2020.08501208,0.0001088,2]
[352636392,1739212239032,-3000.000001,0.0001088,2]
[352636395,1739212239046,-1374.5550006,0.0001088,2]
[352636529,1739212240300,-644.47550886,0.0001088,2]
[352636551,1739212240572,-12712.27219229,0.0001088,2]
[352636823,1739212243248,-340.872,0.0001088,2]
[352637110,1739212246420,-8765.48671656,0.0001088,2]
[352637117,1739212246478,-565.50038394,0.0001088,2]
[352637120,1739212246490,-2012.917632,0.0001088,2]
[352637130,1739212246596,-269.24704914,0.0001088,2]
[352637838,1739212429631,981.38,8.219e-05,2]
[352637840,1739213206798,-332.96,9.445e-05,2]
[352637841,1739213206823,-150.0,9.463e-05,2]
[352637842,1739213206851,-150.0,9.489e-05,2]
[352637843,1739213206879,-1000.0,9.492e-05,2]
[352637844,1739213206905,-33367.04,9.5e-05,2]
[352637869,1739213432479,-150.0,9.501e-05,2]
[352637870,1739213432488,-115.790003,9.616e-05,2]
[352637871,1739213432499,-34.209997,9.616e-05,2]
[352637872,1739213432509,-150.0,9.638e-05,2]
[352637873,1739213432518,-150.0,9.672e-05,2]
[352637874,1739213432527,-150.0,9.742e-05,2]
[352637875,1739213432536,-150.0,9.746e-05,2]
[352637876,1739213432545,-150.0,9.829e-05,2]
[352637877,1739213432554,-150.0,9.842e-05,2]
[352637878,1739213432563,-150.0,9.851e-05,2]
[352637879,1739213432573,-276.34,9.853e-05,2]
[352637880,1739213432583,-500.0,9.965e-05,2]
[352637881,1739213432592,-150.0,0.00010004,2]
[352637882,1739213432601,-61.578003,0.00010019,2]
[352637883,1739213432613,-88.421997,0.00010019,2]
[352637884,1739213432622,-150.0,0.00010066,2]
[352637885,1739213432631,-150.0,0.00010082,2]
[352637886,1739213432640,-73.519996,0.00010137,2]
[352637887,1739213432651,-184.290004,0.00010137,2]
[352637888,1739213432661,-655.71,0.00010141,2]
[352637889,1739213432670,-150.0,0.00010143,2]
[352637890,1739213432679,-150.0,0.00010249,2]
[352637891,1739213432688,-300.0,0.000103,3]
[352637892,1739213432697,-150.0,0.00010385,2]
[352637893,1739213432705,-1000.0,0.00010397,2]
[352637894,1739213432715,-150.0,0.00010397,2]
[352637895,1739213432724,-300.0,0.00010397,2]
[352637896,1739213432733,-600.0,0.000104,3]
[352637897,1739213432742,-1000.0,0.00010422,2]
[352637898,1739213432752,-150.0,0.0001045,2]
[352637899,1739213432761,-15962.96081502,0.00010475,2]
[352637900,1739213432771,-4014.45255788,0.00010475,2]
[352637901,1739213432783,-5370.00000003,0.00010475,2]
[352637902,1739213432795,-1393.76088253,0.00010475,2]
[352637903,1739213432818,-268.59,0.00010475,2]
[352637904,1739213432830,-10474.39854391,0.00010475,2]
[352637905,1739213432843,-1000.0,0.00010475,2]
[352637906,1739213432855,-738.28295851,0.00010475,2]
[352637907,1739213432866,-327.4148016,0.00010475,2]
[352637908,1739213432878,-1000.0,0.00010475,2]
[352637909,1739213432896,-1870.07451559,0.00010475,2]
[352637910,1739213432908,-1231.52630741,0.00010475,2]
[352637920,1739213432996,-499.992,0.00010475,2]
[352637922,1739213433008,-3274.12082617,0.00010475,2]
[352637924,1739213433020,-372.98264545,0.00010475,2]
[352637927,1739213433032,-964.27731205,0.00010475,2]
[352637934,1739213433097,-428.94,0.00010475,2]
[352637936,1739213433109,-21050.57583385,0.00010475,2]
[352637939,1739213433119,-150.99,0.00010475,2]
[352637942,1739213433128,-981.38,0.0001048,2]
[352637944,1739213433138,-900.0,0.000105,3]
[352637946,1739213433148,-150.0,0.00010535,2]
[352637948,1739213433158,-1000.0,0.00010557,2]
[352637950,1739213433167,-150.0,0.00010563,2]
[352637952,1739213433177,-1200.0,0.000106,3]
[352637954,1739213433187,-1000.0,0.00010607,2]
[352637956,1739213433196,-150.0,0.00010619,2]
[352637958,1739213433206,-332.96,0.00010625,2]
[352637960,1739213433216,-150.0,0.00010678,2]
[352637962,1739213433226,-1000.0,0.00010679,2]
[352637965,1739213433236,-1500.0,0.000107,3]
[352637966,1739213433246,-150.0,0.00010709,2]
[352637969,1739213433256,-150.0,0.00010755,2]
[352637971,1739213433266,-150.0,0.00010761,2]
[352637972,1739213433276,-4000.0,0.0001077,2]
[352637974,1739213433286,-150.0,0.00010774,2]
[352637976,1739213433295,-1000.0,0.00010784,2]
[352637978,1739213433306,-300.0,0.000108,3]
[352637980,1739213433316,-150.0,0.00010806,2]
[352637983,1739213433328,-766094.4178424,0.00010833,2]
[352637985,1739213433338,-1713.02426236,0.00010835,2]
[352637987,1739213433349,-30578.39490192,0.00010835,2]
[352637989,1739213433358,-24127.97881584,0.00010839,2]
[352637991,1739213433369,-148149.34159801,0.0001084,2]
[352638374,1739213437323,-87770.66484265,0.0001084,2]
[352638376,1739213437334,-2496.522,0.00010842,2]
[352638378,1739213437343,-30578.39490192,0.00010843,2]
[352638380,1739213437353,-1713.02426236,0.00010846,2]
[352638382,1739213437363,-170.826,0.00010846,2]
[352638384,1739213437372,-174438.67830996,0.00010847,2]
[352638395,1739213437475,-58477.92970151,0.00010847,2]
[352638399,1739213437539,-37122.70821619,0.00010847,2]
[352638400,1739213437550,-17776.968879,0.00010847,2]
[352638562,1739213439534,-195976.94721322,0.00010847,2]
[352638565,1739213439545,-102420.09298607,0.00010847,2]
[352638577,1739213439651,-817.21111779,0.00010847,2]
[352638582,1739213439687,-7692.88547222,0.00010847,2]
[352638585,1739213439706,-342.0275138,0.00010847,2]
[352638590,1739213439744,-444.13412497,0.00010847,2]
[352638592,1739213439755,-30512.20000051,0.00010847,2]
[352638597,1739213439799,-548.72783516,0.00010847,2]
[352638600,1739213439811,-288.07999384,0.00010847,2]
[352638883,1739213442487,-321.59385755,0.00010847,2]
[352638893,1739213442535,-50130.70468253,0.00010847,2]
[352638896,1739213442546,-22962.09038652,0.00010847,2]
[352638925,1739213442804,-2116.18886571,0.00010847,2]
[352639232,1739213445452,-1770.96948606,0.00010847,2]
[352639255,1739213445659,-336.05845706,0.00010847,2]
[352639262,1739213445717,-16483.05112109,0.00010847,2]
[352639264,1739213445728,-7025.37960402,0.00010847,2]
[352639568,1739213462890,968.63,8.219e-05,2]
[352639579,1739214404802,-4370.7115,8.836e-05,2]
[352639580,1739214404826,-878.6239,8.836e-05,2]
[352639581,1739214404849,-603.49617554,8.836e-05,2]
[352639582,1739214404873,-382.0695,8.973e-05,2]
[352639583,1739214404897,-250.0,9.93e-05,2]
[352639584,1739214404921,-165.63,9.958e-05,2]
[352639585,1739214404947,-1000.0,9.964e-05,2]
[352639586,1739214404972,-307.08,9.964e-05,2]
[352639587,1739214404995,-276.34,9.966e-05,2]
[352639589,1739214429527,-156.15,0.00010137,2]
[352639590,1739214429551,-495.99,0.00010403,2]
[352639591,1739214429574,-968.63,0.00010446,2]
[352639592,1739214438301,490.15,0.00010339,2]
[352639598,1739214461887,5000.0,8.973e-05,2]
[352639624,1739214594860,342.75,0.00010137,2]
[352639629,1739214631666,-479.0,0.000106,2]
[352639630,1739214631676,-509.23,0.000106,2]
[352639631,1739214631685,-500.63,0.000106,2]
[352639632,1739214631695,-497.83,0.000106,2]
[352639633,1739214631704,-494.33,0.000106,2]
[352639634,1739214631713,-500.03,0.00010601,2]
[352639635,1739214631723,-508.02,0.00010602,2]
[352639636,1739214631732,-497.35,0.00010603,2]
[352639637,1739214631742,-506.58,0.00010606,2]
[352639638,1739214631752,-509.12,0.00010612,2]
[352639639,1739214631761,-493.79,0.00010624,2]
[352639640,1739214631772,-498.71,0.00010647,2]
[352639641,1739214631782,-494.78,0.00010692,2]
[352639642,1739214631792,-508.79,0.00010779,2]
[352639643,1739214631801,-300.0,0.0001078,2]
[352639644,1739214631811,-10486.92587849,0.00010781,2]
[352639645,1739214631821,-4000.0,0.00010847,2]
[352639646,1739214631832,-38089.79001762,0.00010847,2]
[352639647,1739214631841,-235920.00644066,0.0001085,2]
[352639648,1739214631851,-24127.97881584,0.0001085,2]
[352639649,1739214631861,-200.0,0.00010852,2]
[352639650,1739214631871,-21703.2142032,0.00010856,2]
[352639651,1739214631881,-24127.97881584,0.00010858,2]
[352639652,1739214631890,-153.05037794,0.00010858,2]
[352639653,1739214631901,-30578.39490192,0.00010859,2]
[352639654,1739214631910,-21703.2142032,0.00010861,2]
[352639655,1739214631919,-235920.00644066,0.00010862,2]
[352639656,1739214631928,-490.4,0.00010862,2]
[352639657,1739214631938,-24127.97881584,0.00010862,2]
[352639658,1739214631947,-248148.98803118,0.00010868,2]
[352639659,1739214631959,-56744.45646487,0.00010868,2]
[352639660,1739214632001,-5036.63307204,0.00010868,2]
[352639661,1739214632028,-320.34913565,0.00010868,2]
[352639662,1739214632044,-881.85133044,0.00010868,2]
[352639663,1739214632057,-3172.8981921,0.00010868,2]
[352639664,1739214632068,-283.90428462,0.00010868,2]
[352639665,1739214632079,-85713.21425073,0.00010868,2]
[352639737,1739214639879,-420.68645787,0.00010868,2]
[352640007,1739214642678,-22851.80260568,0.00010868,2]
[352640027,1739214642869,-342519.63401722,0.00010868,2]
[352640029,1739214642879,-153.05037791,0.00010869,2]
[352640031,1739214642888,-509.29,0.00010869,2]
[352640033,1739214642899,-495.21,0.00010869,2]
[352640035,1739214642910,-1713.02426236,0.0001087,2]
[352640037,1739214642919,-235920.00644066,0.00010875,2]
[352640040,1739214642929,-200.0,0.00010877,2]
[352640042,1739214642938,-153.05037791,0.00010879,2]
[352640043,1739214642948,-150.0,0.00010879,2]
[352640045,1739214642958,-463.83585659,0.00010879,2]
[352640048,1739214642968,-152.41660807,0.00010879,2]
[352640050,1739214642978,-500.0,0.00010879,2]
[352640051,1739214642987,-523.8693422,0.00010879,2]
[352640054,1739214642997,-257040.25230427,0.0001088,2]
[352640055,1739214643007,-164.56502396,0.0001088,2]
[352640058,1739214643018,-340.872,0.0001088,2]
[352640059,1739214643028,-178.32788947,0.0001088,2]
[352640062,1739214643038,-140570.58465441,0.0001088,2]
[352640064,1739214643048,-2382.649,0.0001088,2]
[352640066,1739214643058,-171.794,0.0001088,2]
[352640068,1739214643068,-21703.2142032,0.00010881,2]
[352640070,1739214643077,-153.05037791,0.0001089,2]
[352640072,1739214643087,-21703.2142032,0.00010896,2]
[352640074,1739214643097,-30578.39490192,0.00010897,2]
[352640076,1739214643106,-4593.18253738,0.00010898,2]
[352640078,1739214643115,-175.04485572,0.00010898,2]
[352640080,1739214643125,-150.5182465,0.00010898,2]
[352640082,1739214643135,-1713.02426236,0.00010899,2]
[352640084,1739214643143,-1501.43003021,0.00010899,2]
[352640086,1739214643153,-766094.4178424,0.000109,2]
[352640088,1739214643162,-6657.76765616,0.000109,2]
[352640090,1739214643172,-132892.7832018,0.000109,2]
[352640092,1739214643182,-80826.18484625,0.000109,2]
[352640094,1739214643192,-153.05037791,0.000109,2]
[352640096,1739214643202,-373.0,0.00010932,2]
[352640098,1739214643211,-203.15424229,0.00010948,2]
[352640100,1739214643221,-35247.33516979,0.00010957,2]
[352640102,1739214643230,-1807.0,0.00010958,2]
[352640104,1739214643240,-151.0,0.00010958,2]
[352640107,1739214643249,-500.0,0.00010958,2]
[352640109,1739214643259,-542.82872497,0.00010958,2]
[352640111,1739214643268,-171.36919,0.00010958,2]
[352640113,1739214643280,-500.0,0.00010958,2]
[352640115,1739214643290,-500.0,0.00010958,2]
[352640117,1739214643299,-159.486216,0.00010958,2]
[352640119,1739214643309,-500.0,0.00010958,2]
[352640121,1739214643318,-500.0,0.00010958,2]
[352640123,1739214643328,-500.0,0.00010958,2]
[352640125,1739214643338,-500.0,0.00010958,2]
[352640127,1739214643348,-500.0,0.00010958,2]
[352640129,1739214643358,-500.0,0.00010958,2]
[352640131,1739214643368,-882.51,0.00010958,2]
[352640133,1739214643378,-500.0,0.00010958,2]
[352640135,1739214643387,-500.0,0.00010958,2]
[352640137,1739214643396,-500.0,0.00010958,2]
[352640139,1739214643406,-500.0,0.00010958,2]
[352640141,1739214643416,-500.0,0.00010958,2]
[352640143,1739214643425,-500.0,0.00010958,2]
[352640145,1739214643434,-421.2897835,0.00010958,2]
[352640147,1739214643444,-500.0,0.00010958,2]
[352640149,1739214643453,-279.41940043,0.00010958,2]
[352640151,1739214643462,-500.0,0.00010958,2]
[352640153,1739214643473,-514.41276543,0.00010958,2]
[352640155,1739214643483,-500.0,0.00010958,2]
[352640157,1739214643493,-500.0,0.00010958,2]
[352640159,1739214643502,-359.40965907,0.00010958,2]
[352640161,1739214643512,-500.0,0.00010958,2]
[352640163,1739214643522,-500.0,0.00010958,2]
[352640165,1739214643533,-500.0,0.00010958,2]
[352640167,1739214643542,-500.0,0.00010958,2]
[352640169,1739214643552,-500.0,0.00010958,2]
[352640182,1739214643666,-500.0,0.00010958,2]
[352640185,1739214643687,-500.0,0.00010958,2]
[352640187,1739214643696,-500.0,0.00010958,2]
[352640189,1739214643705,-500.0,0.00010958,2]
[352640191,1739214643715,-500.0,0.00010958,2]
[352640194,1739214643725,-433.16786544,0.00010958,2]
[352640196,1739214643735,-500.0,0.00010958,2]
[352640198,1739214643744,-500.0,0.00010958,2]
[352640199,1739214643754,-500.0,0.00010958,2]
[352640201,1739214643763,-500.0,0.00010958,2]
[352640203,1739214643771,-500.0,0.00010958,2]
[352640206,1739214643782,-500.0,0.00010958,2]
[352640208,1739214643792,-500.0,0.00010958,2]
[352640210,1739214643801,-500.0,0.00010958,2]
[352640212,1739214643811,-500.0,0.00010958,2]
[352640214,1739214643821,-500.0,0.00010958,2]
[352640215,1739214643832,-500.0,0.00010958,2]
[352640217,1739214643841,-500.0,0.00010958,2]
[352640219,1739214643851,-500.0,0.00010958,2]
[352640221,1739214643860,-505.21,0.00010958,2]
[352640223,1739214643871,-500.0,0.00010958,2]
[352640226,1739214643882,-500.76598811,0.00010958,2]
[352640228,1739214643891,-500.0,0.00010958,2]
[352640229,1739214643900,-500.0,0.00010958,2]
[352640232,1739214643912,-573.21,0.00010958,2]
[352640234,1739214643922,-500.0,0.00010958,2]
[352640236,1739214643932,-171.36919,0.00010958,2]
[352640238,1739214643941,-500.0,0.00010958,2]
[352640239,1739214643952,-500.0,0.00010958,2]
[352640241,1739214643961,-500.0,0.00010958,2]
[352640243,1739214643970,-500.0,0.00010958,2]
[352640245,1739214643979,-500.0,0.00010958,2]
[352640246,1739214643988,-500.0,0.00010958,2]
[352640247,1739214643998,-159.486216,0.00010958,2]
[352640248,1739214644008,-500.0,0.00010958,2]
[352640249,1739214644017,-500.0,0.00010958,2]
[352640250,1739214644028,-500.0,0.00010958,2]
[352640251,1739214644039,-500.0,0.00010958,2]
[352640252,1739214644050,-151.0,0.00010958,2]
[352640254,1739214644059,-562.41,0.00010958,2]
[352640256,1739214644069,-500.0,0.00010958,2]
[352640258,1739214644079,-503.35240473,0.00010958,2]
[352640260,1739214644088,-500.0,0.00010958,2]
[352640262,1739214644097,-500.0,0.00010958,2]
[352640264,1739214644106,-622.9,0.00010958,2]
[352640266,1739214644116,-500.0,0.00010958,2]
[352640268,1739214644125,-500.0,0.00010958,2]
[352640270,1739214644134,-500.0,0.00010958,2]
[352640272,1739214644143,-500.0,0.00010958,2]
[352640274,1739214644152,-500.0,0.00010958,2]
[352640276,1739214644161,-703.35,0.00010958,2]
[352640278,1739214644171,-349.99898963,0.00010958,2]
[352640280,1739214644181,-511.40839371,0.00010958,2]
[352640282,1739214644190,-500.0,0.00010958,2]
[352640284,1739214644199,-500.0,0.00010958,2]
[352640286,1739214644208,-500.0,0.00010958,2]
[352640288,1739214644217,-511.89184812,0.00010958,2]
[352640290,1739214644227,-500.0,0.00010958,2]
[352640292,1739214644237,-506.31538287,0.00010958,2]
[352640295,1739214644247,-500.0,0.00010958,2]
[352640298,1739214644256,-500.0,0.00010958,2]
[352640301,1739214644266,-500.0,0.00010958,2]
[352640304,1739214644276,-500.0,0.00010958,2]
[352640305,1739214644287,-500.0,0.00010958,2]
[352640308,1739214644296,-1399.76,0.00010958,2]
[352640310,1739214644305,-500.0,0.00010958,2]
[352640312,1739214644315,-500.0,0.00010958,2]
[352640314,1739214644324,-500.0,0.00010958,2]
[352640316,1739214644333,-500.0,0.00010958,2]
[352640319,1739214644344,-500.0,0.00010958,2]
[352640321,1739214644354,-500.0,0.00010958,2]
[352640323,1739214644363,-478.42584532,0.00010958,2]
[352640324,1739214644372,-172.680898,0.00010958,2]
[352640326,1739214644382,-500.0,0.00010958,2]
[352640329,1739214644392,-500.0,0.00010958,2]
[352640330,1739214644401,-500.0,0.00010958,2]
[352640333,1739214644411,-268.496994,0.00010958,2]
[352640334,1739214644420,-500.0,0.00010958,2]
[352640336,1739214644429,-500.0,0.00010958,2]
[352640338,1739214644438,-500.76067431,0.00010958,2]
[352640340,1739214644447,-502.50806508,0.00010958,2]
[352640342,1739214644455,-500.0,0.00010958,2]
[352640344,1739214644465,-500.0,0.00010958,2]
[352640346,1739214644474,-504.12634113,0.00010958,2]
[352640348,1739214644484,-500.0,0.00010958,2]
[352640351,1739214644494,-702.88,0.00010958,2]
[352640353,1739214644503,-156.12533,0.00010958,2]
[352640355,1739214644513,-500.0,0.00010958,2]
[352640357,1739214644522,-500.0,0.00010958,2]
[352640358,1739214644532,-500.0,0.00010958,2]
[352640360,1739214644541,-500.0,0.00010958,2]
[352640362,1739214644550,-500.0,0.00010958,2]
[352640365,1739214644561,-732.38,0.00010958,2]
[352640367,1739214644570,-500.0,0.00010958,2]
[352640369,1739214644580,-906.83,0.00010958,2]
[352640371,1739214644590,-500.0,0.00010958,2]
[352640373,1739214644599,-723.02,0.00010958,2]
[352640375,1739214644609,-502.81832169,0.00010958,2]
[352640377,1739214644618,-500.0,0.00010958,2]
[352640379,1739214644628,-500.0,0.00010958,2]
[352640381,1739214644638,-500.0,0.00010958,2]
[352640383,1739214644647,-500.0,0.00010958,2]
[352640385,1739214644657,-500.0,0.00010958,2]
[352640387,1739214644668,-500.0,0.00010958,2]
[352640389,1739214644678,-570.52,0.00010958,2]
[352640390,1739214644688,-346.15261139,0.00010958,2]
[352640393,1739214644699,-500.0,0.00010958,2]
[352640395,1739214644710,-500.0,0.00010958,2]
[352640396,1739214644719,-812.38,0.00010958,2]
[352640398,1739214644729,-1112.62,0.00010958,2]
[352640400,1739214644738,-501.04964395,0.00010958,2]
[352640402,1739214644748,-500.0,0.00010958,2]
[352640404,1739214644758,-500.0,0.00010958,2]
[352640406,1739214644768,-500.0,0.00010958,2]
[352640408,1739214644778,-500.0,0.00010958,2]
[352640410,1739214644789,-500.0,0.00010958,2]
[352640412,1739214644798,-225.942994,0.00010958,2]
[352640414,1739214644809,-500.0,0.00010958,2]
[352640416,1739214644819,-500.0,0.00010958,2]
[352640418,1739214644831,-500.0,0.00010958,2]
[352640420,1739214644840,-500.0,0.00010958,2]
[352640422,1739214644850,-500.0,0.00010958,2]
[352640424,1739214644859,-500.0,0.00010958,2]
[352640426,1739214644870,-502.90999382,0.00010958,2]
[352640428,1739214644880,-500.0,0.00010958,2]
[352640430,1739214644890,-500.0,0.00010958,2]
[352640432,1739214644900,-500.0,0.00010958,2]
[352640434,1739214644911,-500.0,0.00010958,2]
[352640436,1739214644920,-1425.34,0.00010958,2]
[352640438,1739214644929,-500.0,0.00010958,2]
[352640440,1739214644939,-609.74,0.00010958,2]
[352640442,1739214644948,-500.0,0.00010958,2]
[352640444,1739214644959,-500.0,0.00010958,2]
[352640446,1739214644969,-500.0,0.00010958,2]
[352640448,1739214644979,-500.0,0.00010958,2]
[352640450,1739214644989,-500.0,0.00010958,2]
[352640452,1739214645000,-618.06796829,0.00010958,2]
[352640455,1739214645011,-595.61918706,0.00010958,2]
[352640457,1739214645020,-571.23,0.00010958,2]
[352640459,1739214645030,-500.0,0.00010958,2]
[352640461,1739214645040,-500.0,0.00010958,2]
[352640463,1739214645050,-564.97,0.00010958,2]
[352640465,1739214645060,-500.0,0.00010958,2]
[352640467,1739214645070,-500.0,0.00010958,2]
[352640468,1739214645079,-500.0,0.00010958,2]
[352640470,1739214645089,-500.0,0.00010958,2]
[352640472,1739214645098,-500.0,0.00010958,2]
[352640474,1739214645107,-500.0,0.00010958,2]
[352640477,1739214645117,-1039.91,0.00010958,2]
[352640479,1739214645126,-253.40489674,0.00010958,2]
[352640481,1739214645136,-500.0,0.00010958,2]
[352640483,1739214645146,-665.65,0.00010958,2]
[352640485,1739214645155,-500.0,0.00010958,2]
[352640487,1739214645165,-500.0,0.00010958,2]
[352640489,1739214645175,-500.0,0.00010958,2]
[352640491,1739214645184,-500.0,0.00010958,2]
[352640493,1739214645193,-500.0,0.00010958,2]
[352640495,1739214645202,-841.57,0.00010958,2]
[352640497,1739214645212,-500.0,0.00010958,2]
[352640499,1739214645221,-621.63,0.00010958,2]
[352640501,1739214645231,-500.62622198,0.00010958,2]
[352640503,1739214645240,-500.0,0.00010958,2]
[352640505,1739214645251,-500.0,0.00010958,2]
[352640507,1739214645261,-644.12,0.00010958,2]
[352640509,1739214645270,-500.0,0.00010958,2]
[352640511,1739214645281,-500.0,0.00010958,2]
[352640513,1739214645291,-500.0,0.00010958,2]
[352640515,1739214645301,-500.0,0.00010958,2]
[352640517,1739214645310,-500.0,0.00010958,2]
[352640519,1739214645319,-500.0,0.00010958,2]
[352640521,1739214645329,-500.0,0.00010958,2]
[352640523,1739214645338,-500.0,0.00010958,2]
[352640525,1739214645347,-500.0,0.00010958,2]
[352640527,1739214645356,-500.0,0.00010958,2]
[352640529,1739214645365,-504.03533627,0.00010958,2]
[352640531,1739214645374,-596.33542048,0.00010958,2]
[352640533,1739214645383,-506.67,0.00010958,2]
[352640535,1739214645393,-554.06848747,0.00010958,2]
[352640537,1739214645402,-500.0,0.00010958,2]
[352640539,1739214645411,-500.0,0.00010958,2]
[352640541,1739214645421,-500.0,0.00010958,2]
[352640561,1739214645518,-950.16,0.00010958,2]
[352640563,1739214645538,-500.0,0.00010958,2]
[352640565,1739214645547,-500.0,0.00010958,2]
[352640567,1739214645557,-500.0,0.00010958,2]
[352640569,1739214645566,-500.0,0.00010958,2]
[352640571,1739214645576,-500.0,0.00010958,2]
[352640573,1739214645585,-500.0,0.00010958,2]
[352640575,1739214645594,-500.0,0.00010958,2]
[352640577,1739214645604,-500.0,0.00010958,2]
[352640579,1739214645613,-500.0,0.00010958,2]
[352640581,1739214645623,-500.0,0.00010958,2]
[352640583,1739214645632,-500.0,0.00010958,2]
[352640585,1739214645642,-500.0,0.00010958,2]
[352640587,1739214645651,-609.31,0.00010958,2]
[352640589,1739214645660,-581.37191801,0.00010958,2]
[352640591,1739214645669,-500.0,0.00010958,2]
[352640593,1739214645679,-500.0,0.00010958,2]
[352640595,1739214645688,-500.0,0.00010958,2]
[352640596,1739214645697,-580.32462573,0.00010958,2]
[352640597,1739214645708,-720.07,0.00010958,2]
[352640598,1739214645719,-609.66,0.00010958,2]
[352640599,1739214645729,-501.13646855,0.00010958,2]
[352640600,1739214645738,-500.0,0.00010958,2]
[352640601,1739214645748,-500.0,0.00010958,2]
[352640602,1739214645758,-500.0,0.00010958,2]
[352640604,1739214645767,-630.25,0.00010958,2]
[352640606,1739214645776,-500.0,0.00010958,2]
[352640608,1739214645785,-500.0,0.00010958,2]
[352640610,1739214645795,-500.0,0.00010958,2]
[352640612,1739214645804,-591.72,0.00010958,2]
[352640614,1739214645813,-500.0,0.00010958,2]
[352640615,1739214645825,-542.17,0.00010958,2]
[352640618,1739214645838,-500.0,0.00010958,2]
[352640619,1739214645848,-500.0,0.00010958,2]
[352640621,1739214645858,-500.0,0.00010958,2]
[352640623,1739214645869,-500.0,0.00010958,2]
[352640625,1739214645879,-500.0,0.00010958,2]
[352640627,1739214645888,-501.4581613,0.00010958,2]
[352640629,1739214645898,-500.0,0.00010958,2]
[352640632,1739214645911,-554.94,0.00010958,2]
[352640634,1739214645923,-1067.07,0.00010958,2]
[352640636,1739214645933,-151.0,0.00010958,2]
[352640638,1739214645943,-500.0,0.00010958,2]
[352640640,1739214645953,-151.0,0.00010958,2]
[352640642,1739214645962,-500.0,0.00010958,2]
[352640644,1739214645972,-500.0,0.00010958,2]
[352640646,1739214645981,-500.0,0.00010958,2]
[352640648,1739214645992,-500.0,0.00010958,2]
[352640650,1739214646002,-500.0,0.00010958,2]
[352640652,1739214646012,-327.77385101,0.00010958,2]
[352640654,1739214646021,-500.0,0.00010958,2]
[352640656,1739214646033,-500.0,0.00010958,2]
[352640658,1739214646042,-694.61,0.00010958,2]
[352640660,1739214646053,-500.0,0.00010958,2]
[352640662,1739214646062,-501.21013689,0.00010958,2]
[352640664,1739214646072,-500.0,0.00010958,2]
[352640666,1739214646082,-500.0,0.00010958,2]
[352640668,1739214646091,-500.0,0.00010958,2]
[352640670,1739214646101,-500.0,0.00010958,2]
[352640672,1739214646110,-706.28,0.00010958,2]
[352640674,1739214646119,-625.21,0.00010958,2]
[352640676,1739214646129,-500.0,0.00010958,2]